[Event "Titled Tuesday Blitz November 08 Late 2022"]
[White "Ventura Bolet, Maxim"]
[Black "Putnam, Liam"]
[WhiteFideId "22238824"]
[BlackFideId "30938279"]
[WhiteElo "2472"]
[BlackElo "2661"]
[Result "0-1"]
[Round "03"]
[TimeControl "180+1"]
[Date "2022.11.09"]
[WhiteClock "0:00:01"]
[BlackClock "0:00:41"]

1. Nf3 {[%clk 0:02:58]}  g6 {[%clk 0:02:59]} 2. g3 {[%clk 0:02:56]}  Bg7 {[%clk 0:03:00]} 3. d4 {[%clk 0:02:55]}  Nf6 {[%clk 0:02:58]} 4. Bg2 {[%clk 0:02:56]}  O-O {[%clk 0:02:59]} 5. O-O {[%clk 0:02:56]}  d5 {[%clk 0:02:59]} 6. c4 {[%clk 0:02:50]}  dxc4 {[%clk 0:02:59]} 7. Na3 {[%clk 0:02:50]}  c3 {[%clk 0:02:55]} 8. bxc3 {[%clk 0:02:51]}  c5 {[%clk 0:02:55]} 9. e3 {[%clk 0:02:49]}  Nc6 {[%clk 0:02:55]} 10. Qe2 {[%clk 0:02:45]}  Bf5 {[%clk 0:02:49]} 11. Rd1 {[%clk 0:02:41]}  Ne4 {[%clk 0:02:44]} 12. Bb2 {[%clk 0:02:38]}  Qa5 {[%clk 0:02:34]} 13. Nc4 {[%clk 0:02:35]}  Qa6 {[%clk 0:02:21]} 14. Bf1 {[%clk 0:02:26]}  b5 {[%clk 0:02:09]} 15. Nce5 {[%clk 0:02:18]}  c4 {[%clk 0:02:00]} 16. a4 {[%clk 0:02:10]}  Nxe5 {[%clk 0:01:57]} 17. Nxe5 {[%clk 0:01:58]}  Bxe5 {[%clk 0:01:55]} 18. axb5 {[%clk 0:01:44]}  Qxb5 {[%clk 0:01:44]} 19. dxe5 {[%clk 0:01:44]}  Rfb8 {[%clk 0:01:39]} 20. Ra2 {[%clk 0:01:22]}  Qb3 {[%clk 0:01:21]} 21. Qxc4 {[%clk 0:00:58]}  Qxd1 {[%clk 0:01:21]} 22. Ba3 {[%clk 0:00:22]}  Rb1 {[%clk 0:00:51]} 23. Bxe7 {[%clk 0:00:15]}  Rc8 {[%clk 0:00:47]} 24. Qa6 {[%clk 0:00:10]}  Bh3 {[%clk 0:00:41]} 25. Rc2 {[%clk 0:00:02]}  Qxf1+ {[%clk 0:00:40]} 26. Qxf1 {[%clk 0:00:01]}  Rxf1# {[%clk 0:00:41]} 0-1


[Site "https://www.chess.com"]

[Event "Titled Tuesday Blitz November 08 Late 2022"]
[White "Viana Da Costa, Fernando"]
[Black "Kaganskiy, Gleb"]
[WhiteFideId "2111900"]
[BlackFideId "4132025"]
[WhiteElo "2259"]
[BlackElo "2165"]
[Result "1-0"]
[Round "03"]
[TimeControl "180+1"]
[Date "2022.11.09"]
[WhiteClock "0:00:56"]
[BlackClock "0:00:08"]

1. e4 {[%clk 0:03:00]}  e6 {[%clk 0:02:57]} 2. d4 {[%clk 0:03:00]}  d5 {[%clk 0:02:57]} 3. Nd2 {[%clk 0:03:00]}  c5 {[%clk 0:02:57]} 4. Ngf3 {[%clk 0:02:59]}  cxd4 {[%clk 0:02:56]} 5. Nxd4 {[%clk 0:02:59]}  Nc6 {[%clk 0:02:55]} 6. Bb5 {[%clk 0:02:57]}  Bd7 {[%clk 0:02:56]} 7. Nxc6 {[%clk 0:02:54]}  bxc6 {[%clk 0:02:57]} 8. Bd3 {[%clk 0:02:54]}  Bd6 {[%clk 0:02:51]} 9. O-O {[%clk 0:02:53]}  e5 {[%clk 0:02:26]} 10. c4 {[%clk 0:02:49]}  d4 {[%clk 0:02:23]} 11. c5 {[%clk 0:02:06]}  Bxc5 {[%clk 0:02:10]} 12. Nc4 {[%clk 0:02:05]}  Qe7 {[%clk 0:02:06]} 13. f4 {[%clk 0:02:03]}  Nf6 {[%clk 0:01:46]} 14. Nxe5 {[%clk 0:01:53]}  O-O {[%clk 0:01:45]} 15. Nxd7 {[%clk 0:01:42]}  Qxd7 {[%clk 0:01:36]} 16. e5 {[%clk 0:01:40]}  Nd5 {[%clk 0:01:35]} 17. Bxh7+ {[%clk 0:01:36]}  Kxh7 {[%clk 0:01:31]} 18. Qc2+ {[%clk 0:01:36]}  d3+ {[%clk 0:01:02]} 19. Qxc5 {[%clk 0:01:37]}  Rad8 {[%clk 0:00:44]} 20. Qd4 {[%clk 0:01:09]}  Qf5 {[%clk 0:00:42]} 21. Rf3 {[%clk 0:01:03]}  Nxf4 {[%clk 0:00:15]} 22. Qxf4 {[%clk 0:01:01]}  Qxf4 {[%clk 0:00:12]} 23. Bxf4 {[%clk 0:00:59]}  d2 {[%clk 0:00:12]} 24. Rd1 {[%clk 0:01:00]}  Rd5 {[%clk 0:00:08]} 25. Rxd2 {[%clk 0:00:56]} 1-0


[Site "https://www.chess.com"]

[Event "Titled Tuesday Blitz November 08 Late 2022"]
[White "Wieczorek, Oskar"]
[Black "Brown, Andrew"]
[WhiteFideId "1133950"]
[BlackFideId "3206513"]
[WhiteElo "2404"]
[BlackElo "2245"]
[Result "0-1"]
[Round "03"]
[TimeControl "180+1"]
[Date "2022.11.08"]
[WhiteClock "0:00:07"]
[BlackClock "0:00:16"]

1. e4 {[%clk 0:03:00]}  g6 {[%clk 0:03:00]} 2. d4 {[%clk 0:02:55]}  Bg7 {[%clk 0:02:59]} 3. Nf3 {[%clk 0:02:56]}  c6 {[%clk 0:02:59]} 4. h3 {[%clk 0:02:51]}  d5 {[%clk 0:02:59]} 5. e5 {[%clk 0:02:48]}  h5 {[%clk 0:03:00]} 6. c4 {[%clk 0:02:46]}  Nh6 {[%clk 0:02:56]} 7. Nc3 {[%clk 0:02:46]}  Nf5 {[%clk 0:02:54]} 8. cxd5 {[%clk 0:02:38]}  cxd5 {[%clk 0:02:53]} 9. Qb3 {[%clk 0:02:39]}  Nc6 {[%clk 0:02:43]} 10. Bb5 {[%clk 0:01:58]}  O-O {[%clk 0:02:35]} 11. Bxc6 {[%clk 0:01:52]}  bxc6 {[%clk 0:02:36]} 12. g4 {[%clk 0:01:48]}  Nh6 {[%clk 0:02:06]} 13. gxh5 {[%clk 0:01:39]}  gxh5 {[%clk 0:01:54]} 14. Rg1 {[%clk 0:01:24]}  Kh8 {[%clk 0:01:53]} 15. Rg5 {[%clk 0:01:13]}  Bxh3 {[%clk 0:01:41]} 16. Rxh5 {[%clk 0:01:06]}  Bg4 {[%clk 0:01:41]} 17. Rh4 {[%clk 0:00:58]}  Bxf3 {[%clk 0:01:33]} 18. Bxh6 {[%clk 0:00:58]}  Bxh6 {[%clk 0:01:28]} 19. Rxh6+ {[%clk 0:00:59]}  Kg7 {[%clk 0:01:28]} 20. Rh3 {[%clk 0:00:36]}  Rh8 {[%clk 0:01:14]} 21. Rg3+ {[%clk 0:00:36]}  Kf8 {[%clk 0:01:14]} 22. Kd2 {[%clk 0:00:37]}  Be4 {[%clk 0:01:10]} 23. Rag1 {[%clk 0:00:29]}  Rb8 {[%clk 0:00:56]} 24. Qa3 {[%clk 0:00:30]}  Qb6 {[%clk 0:00:52]} 25. Ke3 {[%clk 0:00:16]}  Qxb2 {[%clk 0:00:50]} 26. Qxb2 {[%clk 0:00:11]}  Rxb2 {[%clk 0:00:51]} 27. Nxe4 {[%clk 0:00:07]}  dxe4 {[%clk 0:00:49]} 28. Kxe4 {[%clk 0:00:06]}  Rxf2 {[%clk 0:00:45]} 29. Rb1 {[%clk 0:00:06]}  f5+ {[%clk 0:00:22]} 30. Ke3 {[%clk 0:00:05]}  Rhh2 {[%clk 0:00:19]} 31. e6 {[%clk 0:00:02]}  f4+ {[%clk 0:00:17]} 32. Ke4 {[%clk 0:00:03]}  fxg3 {[%clk 0:00:17]} 33. Rb8+ {[%clk 0:00:04]}  Kg7 {[%clk 0:00:16]} 34. Re8 {[%clk 0:00:05]}  Kf6 {[%clk 0:00:16]} 35. Rf8+ {[%clk 0:00:05]}  Kxe6 {[%clk 0:00:16]} 36. Ra8 {[%clk 0:00:06]}  g2 {[%clk 0:00:16]} 37. Rxa7 {[%clk 0:00:07]}  g1=Q {[%clk 0:00:16]} 0-1


[Site "https://www.chess.com"]

[Event "Titled Tuesday Blitz November 08 Late 2022"]
[White "Xiong, Jeffery"]
[Black "Papasimakopoulos, Alexandros"]
[WhiteFideId "2047640"]
[BlackFideId "4244125"]
[WhiteElo "2725"]
[BlackElo "2365"]
[Result "1-0"]
[Round "03"]
[TimeControl "180+1"]
[Date "2022.11.08"]
[WhiteClock "0:01:33"]
[BlackClock "0:01:06"]

1. d4 {[%clk 0:03:00]}  e6 {[%clk 0:03:00]} 2. e4 {[%clk 0:02:58]}  d5 {[%clk 0:03:00]} 3. exd5 {[%clk 0:02:59]}  exd5 {[%clk 0:03:01]} 4. Nf3 {[%clk 0:03:00]}  Bg4 {[%clk 0:03:01]} 5. h3 {[%clk 0:02:57]}  Bh5 {[%clk 0:03:02]} 6. Nc3 {[%clk 0:02:52]}  Bb4 {[%clk 0:03:01]} 7. Bd3 {[%clk 0:02:35]}  Nc6 {[%clk 0:02:59]} 8. Be3 {[%clk 0:02:33]}  Nf6 {[%clk 0:02:59]} 9. O-O {[%clk 0:02:34]}  Bxc3 {[%clk 0:02:54]} 10. bxc3 {[%clk 0:02:35]}  O-O {[%clk 0:02:54]} 11. g4 {[%clk 0:02:30]}  Bg6 {[%clk 0:02:54]} 12. Ne5 {[%clk 0:02:29]}  Nxe5 {[%clk 0:02:52]} 13. dxe5 {[%clk 0:02:30]}  Nd7 {[%clk 0:02:53]} 14. f4 {[%clk 0:02:29]}  Qh4 {[%clk 0:02:40]} 15. Qf3 {[%clk 0:02:24]}  Bxd3 {[%clk 0:02:21]} 16. cxd3 {[%clk 0:02:25]}  c6 {[%clk 0:02:19]} 17. d4 {[%clk 0:02:25]}  Rae8 {[%clk 0:02:12]} 18. f5 {[%clk 0:02:23]}  Nb6 {[%clk 0:02:08]} 19. Rae1 {[%clk 0:02:20]}  Nc4 {[%clk 0:02:09]} 20. Bc1 {[%clk 0:02:17]}  a5 {[%clk 0:02:02]} 21. Kg2 {[%clk 0:02:17]}  a4 {[%clk 0:02:02]} 22. Qd1 {[%clk 0:01:53]}  a3 {[%clk 0:01:55]} 23. f6 {[%clk 0:01:49]}  Re6 {[%clk 0:01:48]} 24. fxg7 {[%clk 0:01:44]}  Kxg7 {[%clk 0:01:39]} 25. Rf5 {[%clk 0:01:43]}  h6 {[%clk 0:01:26]} 26. Ref1 {[%clk 0:01:38]}  Qe7 {[%clk 0:01:17]} 27. Rf6 {[%clk 0:01:34]}  Rh8 {[%clk 0:01:15]} 28. Qf3 {[%clk 0:01:33]}  Rf8 {[%clk 0:01:06]} 29. Bxh6+ {[%clk 0:01:33]} 1-0


[Site "https://www.chess.com"]

[Event "Titled Tuesday Blitz November 08 Late 2022"]
[White "Yanayt, Eugene"]
[Black "Phillips, Rene"]
[WhiteFideId "2020165"]
[BlackFideId "2056275"]
[WhiteElo "2046"]
[BlackElo "2000"]
[Result "1-0"]
[Round "03"]
[TimeControl "180+1"]
[Date "2022.11.09"]
[WhiteClock "0:01:53"]
[BlackClock "0:01:18"]

1. e4 {[%clk 0:03:00]}  Nc6 {[%clk 0:02:42]} 2. Nc3 {[%clk 0:02:57]}  Nf6 {[%clk 0:02:40]} 3. d4 {[%clk 0:02:53]}  d5 {[%clk 0:02:41]} 4. e5 {[%clk 0:02:51]}  Nd7 {[%clk 0:02:40]} 5. Nxd5 {[%clk 0:02:49]}  Ndb8 {[%clk 0:02:39]} 6. c4 {[%clk 0:02:43]}  e6 {[%clk 0:02:38]} 7. Ne3 {[%clk 0:02:40]}  Qxd4 {[%clk 0:02:37]} 8. Qxd4 {[%clk 0:02:36]}  Nxd4 {[%clk 0:02:37]} 9. Bd3 {[%clk 0:02:36]}  Nbc6 {[%clk 0:02:35]} 10. f4 {[%clk 0:02:28]}  Bb4+ {[%clk 0:02:32]} 11. Bd2 {[%clk 0:02:23]}  Bd7 {[%clk 0:02:27]} 12. O-O-O {[%clk 0:02:18]}  O-O-O {[%clk 0:02:23]} 13. Nh3 {[%clk 0:02:06]}  h6 {[%clk 0:02:18]} 14. Nf2 {[%clk 0:02:05]}  Bxd2+ {[%clk 0:01:56]} 15. Rxd2 {[%clk 0:02:04]}  Nb4 {[%clk 0:01:56]} 16. Bb1 {[%clk 0:02:02]}  Bc6 {[%clk 0:01:50]} 17. Rhd1 {[%clk 0:01:57]}  Nf5 {[%clk 0:01:32]} 18. Nxf5 {[%clk 0:01:54]}  exf5 {[%clk 0:01:18]} 19. Bxf5+ {[%clk 0:01:53]} 1-0


[Site "https://www.chess.com"]

[Event "Titled Tuesday Blitz November 08 Late 2022"]
[White "Zakhartsov, Vladimir"]
[Black "Pinheiro, Iung Alicio de O."]
[WhiteFideId "4145097"]
[BlackFideId "2104350"]
[WhiteElo "2525"]
[BlackElo "2283"]
[Result "1-0"]
[Round "03"]
[TimeControl "180+1"]
[Date "2022.11.08"]
[WhiteClock "0:01:53"]
[BlackClock "0:01:09"]

1. d4 {[%clk 0:02:57]}  Nf6 {[%clk 0:02:58]} 2. c4 {[%clk 0:02:57]}  g6 {[%clk 0:02:56]} 3. Nc3 {[%clk 0:02:57]}  d5 {[%clk 0:02:51]} 4. cxd5 {[%clk 0:02:56]}  Nxd5 {[%clk 0:02:51]} 5. e4 {[%clk 0:02:54]}  Nxc3 {[%clk 0:02:51]} 6. bxc3 {[%clk 0:02:55]}  c5 {[%clk 0:02:48]} 7. Be3 {[%clk 0:02:47]}  Bg7 {[%clk 0:02:47]} 8. Nf3 {[%clk 0:02:47]}  O-O {[%clk 0:02:43]} 9. Be2 {[%clk 0:02:44]}  b6 {[%clk 0:02:16]} 10. Rc1 {[%clk 0:02:31]}  Bb7 {[%clk 0:02:15]} 11. d5 {[%clk 0:02:31]}  Na6 {[%clk 0:01:48]} 12. c4 {[%clk 0:02:29]}  e5 {[%clk 0:01:48]} 13. O-O {[%clk 0:02:24]}  Nc7 {[%clk 0:01:48]} 14. a4 {[%clk 0:02:22]}  a5 {[%clk 0:01:39]} 15. Rb1 {[%clk 0:02:20]}  Ne8 {[%clk 0:01:38]} 16. Qb3 {[%clk 0:02:15]}  Ra6 {[%clk 0:01:38]} 17. Bxc5 {[%clk 0:02:09]}  Nd6 {[%clk 0:01:27]} 18. Bxd6 {[%clk 0:01:58]}  Qxd6 {[%clk 0:01:26]} 19. c5 {[%clk 0:01:57]}  Qxc5 {[%clk 0:01:08]} 20. Bxa6 {[%clk 0:01:53]}  Bxa6 {[%clk 0:01:09]} 21. Rfc1 {[%clk 0:01:53]} 1-0


[Site "https://www.chess.com"]

[Event "Titled Tuesday Blitz November 08 Late 2022"]
[White "Zhigalko, Sergei"]
[Black "Coleman, Maxx"]
[WhiteFideId "13502956"]
[BlackFideId "2027119"]
[WhiteElo "2867"]
[BlackElo "2582"]
[Result "1-0"]
[Round "03"]
[TimeControl "180+1"]
[Date "2022.11.09"]
[WhiteClock "0:00:20"]
[BlackClock "0:00:48"]

1. e4 {[%clk 0:02:56]}  c5 {[%clk 0:02:59]} 2. Nf3 {[%clk 0:02:56]}  e6 {[%clk 0:03:00]} 3. c3 {[%clk 0:02:56]}  Ne7 {[%clk 0:02:58]} 4. d4 {[%clk 0:02:57]}  d5 {[%clk 0:02:58]} 5. e5 {[%clk 0:02:57]}  Nbc6 {[%clk 0:02:49]} 6. Bd3 {[%clk 0:02:55]}  f5 {[%clk 0:02:41]} 7. h4 {[%clk 0:02:47]}  Qb6 {[%clk 0:02:36]} 8. dxc5 {[%clk 0:02:41]}  Qxc5 {[%clk 0:02:32]} 9. Na3 {[%clk 0:02:42]}  Ng6 {[%clk 0:02:27]} 10. Qe2 {[%clk 0:02:35]}  a6 {[%clk 0:02:15]} 11. h5 {[%clk 0:02:34]}  Nge7 {[%clk 0:02:14]} 12. Nc2 {[%clk 0:02:34]}  Qa5 {[%clk 0:02:14]} 13. O-O {[%clk 0:02:28]}  b5 {[%clk 0:02:11]} 14. Ncd4 {[%clk 0:02:25]}  Bd7 {[%clk 0:02:10]} 15. Re1 {[%clk 0:02:06]}  Nxd4 {[%clk 0:02:08]} 16. Nxd4 {[%clk 0:02:03]}  Nc6 {[%clk 0:02:09]} 17. Nf3 {[%clk 0:01:20]}  Be7 {[%clk 0:02:06]} 18. b4 {[%clk 0:01:15]}  Qc7 {[%clk 0:02:04]} 19. a4 {[%clk 0:01:15]}  bxa4 {[%clk 0:02:04]} 20. Bxa6 {[%clk 0:01:15]}  O-O {[%clk 0:01:54]} 21. h6 {[%clk 0:01:05]}  g6 {[%clk 0:01:52]} 22. Bb5 {[%clk 0:00:53]}  Na7 {[%clk 0:01:33]} 23. Bxa4 {[%clk 0:00:32]}  Bxa4 {[%clk 0:01:30]} 24. Rxa4 {[%clk 0:00:32]}  Qxc3 {[%clk 0:01:28]} 25. Bg5 {[%clk 0:00:32]}  Bxb4 {[%clk 0:01:23]} 26. Rc1 {[%clk 0:00:23]}  Qb3 {[%clk 0:01:16]} 27. Ra6 {[%clk 0:00:23]}  Rf7 {[%clk 0:00:48]} 28. Nd4 {[%clk 0:00:20]} 1-0


[Site "https://www.chess.com"]

[Event "Titled Tuesday Blitz November 08 Late 2022"]
[White "Adewumi, Tanitoluwa"]
[Black "Baskakov, Egor"]
[WhiteFideId "30966396"]
[BlackFideId "24197866"]
[WhiteElo "2551"]
[BlackElo "2211"]
[Result "0-1"]
[Round "04"]
[TimeControl "180+1"]
[Date "2022.11.09"]
[WhiteClock "0:00:01"]
[BlackClock "0:01:42"]

1. e4 {[%clk 0:03:00]}  c5 {[%clk 0:02:59]} 2. Nf3 {[%clk 0:03:00]}  Nf6 {[%clk 0:02:59]} 3. d4 {[%clk 0:02:47]}  Nxe4 {[%clk 0:02:59]} 4. Bd3 {[%clk 0:02:38]}  d5 {[%clk 0:02:58]} 5. c4 {[%clk 0:02:35]}  cxd4 {[%clk 0:02:58]} 6. cxd5 {[%clk 0:02:21]}  Qxd5 {[%clk 0:02:59]} 7. Nxd4 {[%clk 0:01:51]}  Nc5 {[%clk 0:02:40]} 8. O-O {[%clk 0:01:18]}  Nxd3 {[%clk 0:02:29]} 9. Qxd3 {[%clk 0:01:19]}  Nc6 {[%clk 0:02:30]} 10. Be3 {[%clk 0:00:58]}  e5 {[%clk 0:02:16]} 11. Nc3 {[%clk 0:00:55]}  Qd8 {[%clk 0:02:16]} 12. Qe4 {[%clk 0:00:17]}  Nxd4 {[%clk 0:02:16]} 13. Rad1 {[%clk 0:00:13]}  Qe7 {[%clk 0:01:55]} 14. Nd5 {[%clk 0:00:11]}  Bf5 {[%clk 0:01:51]} 15. Rxd4 {[%clk 0:00:03]}  Bxe4 {[%clk 0:01:46]} 16. Rxe4 {[%clk 0:00:03]}  Qd6 {[%clk 0:01:45]} 17. Rd1 {[%clk 0:00:02]}  Rd8 {[%clk 0:01:42]} 18. f4 {[%clk 0:00:01]} 0-1


[Site "https://www.chess.com"]

[Event "Titled Tuesday Blitz November 08 Late 2022"]
[White "Aghasiyev, Kamal"]
[Black "Adury, Anant"]
[WhiteFideId "13402854"]
[BlackFideId "30964687"]
[WhiteElo "2341"]
[BlackElo "2203"]
[Result "1-0"]
[Round "04"]
[TimeControl "180+1"]
[Date "2022.11.09"]
[WhiteClock "0:02:32"]
[BlackClock "0:02:07"]

1. d4 {[%clk 0:03:00]}  Nf6 {[%clk 0:02:59]} 2. Nf3 {[%clk 0:02:59]}  e6 {[%clk 0:03:00]} 3. g3 {[%clk 0:02:56]}  b6 {[%clk 0:02:58]} 4. Bg2 {[%clk 0:02:56]}  Bb7 {[%clk 0:02:49]} 5. O-O {[%clk 0:02:56]}  Be7 {[%clk 0:02:48]} 6. b3 {[%clk 0:02:55]}  O-O {[%clk 0:02:47]} 7. Bb2 {[%clk 0:02:53]}  d6 {[%clk 0:02:44]} 8. c4 {[%clk 0:02:52]}  Nbd7 {[%clk 0:02:44]} 9. Nc3 {[%clk 0:02:52]}  Ne4 {[%clk 0:02:45]} 10. Qc2 {[%clk 0:02:51]}  Nxc3 {[%clk 0:02:44]} 11. Bxc3 {[%clk 0:02:50]}  f5 {[%clk 0:02:43]} 12. Ng5 {[%clk 0:02:41]}  Bxg5 {[%clk 0:02:18]} 13. Bxb7 {[%clk 0:02:40]}  Rb8 {[%clk 0:02:18]} 14. Bg2 {[%clk 0:02:40]}  Bf6 {[%clk 0:02:17]} 15. e4 {[%clk 0:02:38]}  g6 {[%clk 0:02:16]} 16. Rad1 {[%clk 0:02:36]}  Qe7 {[%clk 0:02:16]} 17. Rfe1 {[%clk 0:02:36]}  Bg7 {[%clk 0:02:15]} 18. exf5 {[%clk 0:02:36]}  gxf5 {[%clk 0:02:13]} 19. Rxe6 {[%clk 0:02:36]}  Qf7 {[%clk 0:02:09]} 20. Rde1 {[%clk 0:02:33]}  Kh8 {[%clk 0:02:07]} 21. Re7 {[%clk 0:02:33]}  Rbe8 {[%clk 0:02:06]} 22. Rxf7 {[%clk 0:02:32]}  Rxe1+ {[%clk 0:02:07]} 1-0


[Site "https://www.chess.com"]

[Event "Titled Tuesday Blitz November 08 Late 2022"]
[White "Al-Tarboush, Ward"]
[Black "Bach, Matthias"]
[WhiteFideId "7601450"]
[BlackFideId "4603168"]
[WhiteElo "2273"]
[BlackElo "2165"]
[Result "1-0"]
[Round "04"]
[TimeControl "180+1"]
[Date "2022.11.09"]
[WhiteClock "0:01:04"]
[BlackClock "0:00:49"]

1. e4 {[%clk 0:03:00]}  e5 {[%clk 0:02:59]} 2. Nf3 {[%clk 0:03:00]}  Nc6 {[%clk 0:02:59]} 3. Bb5 {[%clk 0:03:00]}  Bc5 {[%clk 0:02:59]} 4. O-O {[%clk 0:02:59]}  d6 {[%clk 0:02:59]} 5. c3 {[%clk 0:02:59]}  a6 {[%clk 0:02:59]} 6. Bxc6+ {[%clk 0:02:57]}  bxc6 {[%clk 0:03:00]} 7. d4 {[%clk 0:02:58]}  exd4 {[%clk 0:03:00]} 8. cxd4 {[%clk 0:02:58]}  Bb6 {[%clk 0:03:00]} 9. Nc3 {[%clk 0:02:56]}  Bg4 {[%clk 0:02:59]} 10. Be3 {[%clk 0:02:27]}  Ne7 {[%clk 0:02:56]} 11. h3 {[%clk 0:02:25]}  Bh5 {[%clk 0:02:54]} 12. d5 {[%clk 0:02:17]}  Bxe3 {[%clk 0:02:38]} 13. fxe3 {[%clk 0:02:18]}  O-O {[%clk 0:02:34]} 14. Qe1 {[%clk 0:02:14]}  Bxf3 {[%clk 0:02:21]} 15. Rxf3 {[%clk 0:02:15]}  Ng6 {[%clk 0:02:18]} 16. Qg3 {[%clk 0:02:02]}  Rb8 {[%clk 0:01:55]} 17. b3 {[%clk 0:01:56]}  Rb4 {[%clk 0:01:53]} 18. dxc6 {[%clk 0:01:53]}  Qe8 {[%clk 0:01:45]} 19. Rc1 {[%clk 0:01:46]}  Qxc6 {[%clk 0:01:40]} 20. Qe1 {[%clk 0:01:45]}  Qd7 {[%clk 0:01:32]} 21. Qe2 {[%clk 0:01:40]}  Ne5 {[%clk 0:01:27]} 22. Rg3 {[%clk 0:01:40]}  c6 {[%clk 0:01:24]} 23. Qc2 {[%clk 0:01:35]}  a5 {[%clk 0:01:19]} 24. Ne2 {[%clk 0:01:34]}  Qa7 {[%clk 0:01:12]} 25. Nd4 {[%clk 0:01:28]}  c5 {[%clk 0:01:08]} 26. Nf5 {[%clk 0:01:26]}  Ng6 {[%clk 0:00:59]} 27. Nxd6 {[%clk 0:01:22]}  Rd8 {[%clk 0:00:57]} 28. Nf5 {[%clk 0:01:20]}  Qb7 {[%clk 0:00:56]} 29. Qc3 {[%clk 0:01:12]}  f6 {[%clk 0:00:54]} 30. Qxc5 {[%clk 0:01:08]}  Qxe4 {[%clk 0:00:49]} 31. Qc7 {[%clk 0:01:04]} 1-0


[Site "https://www.chess.com"]

[Event "Titled Tuesday Blitz November 08 Late 2022"]
[White "Bernat, David"]
[Black "Crevatin, Leo"]
[WhiteFideId "2099225"]
[BlackFideId "1726307"]
[WhiteElo "2339"]
[BlackElo "2208"]
[Result "0-1"]
[Round "04"]
[TimeControl "180+1"]
[Date "2022.11.09"]
[WhiteClock "0:00:07"]
[BlackClock "0:01:37"]

1. c4 {[%clk 0:03:00]}  c5 {[%clk 0:02:57]} 2. Nc3 {[%clk 0:02:59]}  Nf6 {[%clk 0:02:58]} 3. g3 {[%clk 0:02:59]}  d5 {[%clk 0:02:57]} 4. cxd5 {[%clk 0:02:59]}  Nxd5 {[%clk 0:02:58]} 5. Bg2 {[%clk 0:02:59]}  Nc7 {[%clk 0:02:59]} 6. Qa4+ {[%clk 0:02:58]}  Bd7 {[%clk 0:02:57]} 7. Qb3 {[%clk 0:02:51]}  Nc6 {[%clk 0:02:54]} 8. Nf3 {[%clk 0:02:45]}  e5 {[%clk 0:02:50]} 9. d3 {[%clk 0:02:44]}  Be7 {[%clk 0:02:49]} 10. O-O {[%clk 0:02:44]}  O-O {[%clk 0:02:48]} 11. Be3 {[%clk 0:02:35]}  b6 {[%clk 0:02:46]} 12. a4 {[%clk 0:02:32]}  Rb8 {[%clk 0:02:42]} 13. Nb5 {[%clk 0:02:19]}  Ne6 {[%clk 0:02:38]} 14. Rfc1 {[%clk 0:02:10]}  a6 {[%clk 0:02:36]} 15. Nc3 {[%clk 0:02:08]}  Ned4 {[%clk 0:02:35]} 16. Bxd4 {[%clk 0:02:08]}  exd4 {[%clk 0:02:32]} 17. Nd5 {[%clk 0:02:03]}  Bd6 {[%clk 0:02:32]} 18. Nd2 {[%clk 0:01:53]}  Re8 {[%clk 0:02:24]} 19. Nc4 {[%clk 0:01:40]}  Be6 {[%clk 0:02:14]} 20. Ncxb6 {[%clk 0:01:12]}  Bxd5 {[%clk 0:02:02]} 21. Bxd5 {[%clk 0:01:01]}  Rxb6 {[%clk 0:02:01]} 22. Bxf7+ {[%clk 0:01:01]}  Kh8 {[%clk 0:02:01]} 23. Qd5 {[%clk 0:01:02]}  Re5 {[%clk 0:01:57]} 24. Qg2 {[%clk 0:00:57]}  Ne7 {[%clk 0:01:55]} 25. f4 {[%clk 0:00:49]}  Re3 {[%clk 0:01:54]} 26. Rab1 {[%clk 0:00:42]}  Qd7 {[%clk 0:01:52]} 27. b4 {[%clk 0:00:39]}  cxb4 {[%clk 0:01:43]} 28. a5 {[%clk 0:00:38]}  Rb8 {[%clk 0:01:41]} 29. Rc4 {[%clk 0:00:35]}  h6 {[%clk 0:01:38]} 30. Rxd4 {[%clk 0:00:32]}  Nf5 {[%clk 0:01:38]} 31. Rxd6 {[%clk 0:00:07]}  Qxd6 {[%clk 0:01:37]} 0-1


[Site "https://www.chess.com"]

[Event "Titled Tuesday Blitz November 08 Late 2022"]
[White "Besedes, Danilo"]
[Black "Poltorak, Sebastian"]
[WhiteFideId "946796"]
[BlackFideId "1199498"]
[WhiteElo "2352"]
[BlackElo "2196"]
[Result "1-0"]
[Round "04"]
[TimeControl "180+1"]
[Date "2022.11.09"]
[WhiteClock "0:00:32"]
[BlackClock "0:00:04"]

1. Nf3 {[%clk 0:03:00]}  c5 {[%clk 0:02:58]} 2. d3 {[%clk 0:03:01]}  Nc6 {[%clk 0:02:58]} 3. e4 {[%clk 0:03:01]}  e5 {[%clk 0:02:44]} 4. Nc3 {[%clk 0:02:58]}  Nge7 {[%clk 0:02:43]} 5. g3 {[%clk 0:02:57]}  d5 {[%clk 0:02:43]} 6. Bg2 {[%clk 0:02:57]}  d4 {[%clk 0:02:42]} 7. Ne2 {[%clk 0:02:57]}  f6 {[%clk 0:02:40]} 8. O-O {[%clk 0:02:56]}  Be6 {[%clk 0:02:40]} 9. Nh4 {[%clk 0:02:56]}  Qd7 {[%clk 0:02:39]} 10. f4 {[%clk 0:02:55]}  O-O-O {[%clk 0:02:38]} 11. Bd2 {[%clk 0:02:39]}  Bh3 {[%clk 0:02:10]} 12. a3 {[%clk 0:02:26]}  Bxg2 {[%clk 0:02:09]} 13. Kxg2 {[%clk 0:02:25]}  Ng6 {[%clk 0:01:54]} 14. Nf3 {[%clk 0:02:18]}  exf4 {[%clk 0:01:48]} 15. Nxf4 {[%clk 0:02:17]}  Nxf4+ {[%clk 0:01:42]} 16. Bxf4 {[%clk 0:02:17]}  Bd6 {[%clk 0:01:42]} 17. Bxd6 {[%clk 0:02:15]}  Qxd6 {[%clk 0:01:41]} 18. Nd2 {[%clk 0:02:15]}  Ne5 {[%clk 0:01:39]} 19. Qe2 {[%clk 0:01:57]}  h5 {[%clk 0:01:38]} 20. h3 {[%clk 0:01:57]}  Rde8 {[%clk 0:01:35]} 21. Rf5 {[%clk 0:01:54]}  h4 {[%clk 0:01:23]} 22. g4 {[%clk 0:01:54]}  Kb8 {[%clk 0:00:36]} 23. Raf1 {[%clk 0:01:51]}  Rc8 {[%clk 0:00:35]} 24. b3 {[%clk 0:01:49]}  b5 {[%clk 0:00:34]} 25. g5 {[%clk 0:01:42]}  c4 {[%clk 0:00:28]} 26. bxc4 {[%clk 0:01:29]}  bxc4 {[%clk 0:00:22]} 27. gxf6 {[%clk 0:01:24]}  gxf6 {[%clk 0:00:21]} 28. Rxf6 {[%clk 0:01:23]}  Rhg8+ {[%clk 0:00:21]} 29. Kh1 {[%clk 0:01:23]}  Qd7 {[%clk 0:00:21]} 30. R6f5 {[%clk 0:01:17]}  cxd3 {[%clk 0:00:20]} 31. cxd3 {[%clk 0:01:15]}  Rc2 {[%clk 0:00:17]} 32. Qd1 {[%clk 0:01:12]}  Qg7 {[%clk 0:00:13]} 33. Rf8+ {[%clk 0:00:51]}  Rxf8 {[%clk 0:00:12]} 34. Rxf8+ {[%clk 0:00:51]}  Qxf8 {[%clk 0:00:12]} 35. Qxc2 {[%clk 0:00:51]}  Qf4 {[%clk 0:00:06]} 36. Qb3+ {[%clk 0:00:48]}  Kc7 {[%clk 0:00:04]} 37. Qd5 {[%clk 0:00:42]}  Qxd2 {[%clk 0:00:02]} 38. Qxe5+ {[%clk 0:00:40]}  Kc8 {[%clk 0:00:03]} 39. Qc5+ {[%clk 0:00:36]}  Kb7 {[%clk 0:00:02]} 40. Qb4+ {[%clk 0:00:34]}  Qxb4 {[%clk 0:00:02]} 41. axb4 {[%clk 0:00:35]}  Kb6 {[%clk 0:00:03]} 42. Kg2 {[%clk 0:00:33]}  Kb5 {[%clk 0:00:03]} 43. e5 {[%clk 0:00:32]}  Kc6 {[%clk 0:00:03]} 44. Kf3 {[%clk 0:00:32]}  Kd5 {[%clk 0:00:04]} 45. Kf4 {[%clk 0:00:32]} 1-0


[Site "https://www.chess.com"]